fUSD/lending_fUSD_20251126
["ID","MTS","AMOUNT","RATE_DAILY","PERIOD"]
[394941717,1764178245645,-16041.46554879,0.0004,10]
[394941720,1764178245654,-579.38721661,0.00040697,15]
[394941722,1764178245664,-321.7228,0.00040969,2]
[394941724,1764178245675,-1000.0,0.00041043,2]
[394941726,1764178245685,-167.95,0.00041069,2]
[394941728,1764178245694,-999.99,0.00041069,2]
[394941730,1764178245703,-150.99,0.00041069,2]
[394941732,1764178245712,-299.99,0.00041069,120]
[394941734,1764178245722,-150.99,0.00041069,30]
[394941736,1764178245732,-6067.81,0.00041069,2]
[394941738,1764178245742,-4000.0,0.000417,7]
[394941741,1764178245752,-8169.63251305,0.00041712,2]
[394941743,1764178245762,-5331.8188,0.00041833,2]
[394941745,1764178245772,-280.6993,0.00041833,2]
[394941747,1764178245782,-1000.0,0.00041833,2]
[394941749,1764178245792,-1419.5147,0.00041833,2]
[394941751,1764178245800,-2500.0,0.00041833,2]
[394941753,1764178245809,-1395.1454,0.00041833,2]
[394941755,1764178245819,-4000.0,0.000419,7]
[394941756,1764178245829,-574.223,0.00041932,62]
[394941759,1764178245839,-33379.5876,0.00041933,2]
[394941761,1764178245848,-760000.0,0.00041933,2]
[394941763,1764178245859,-1000.0,0.00041933,2]
[394941764,1764178245868,-151.0,0.00041933,120]
[394941766,1764178245877,-161.576432,0.00041933,120]
[394941768,1764178245887,-170.352177,0.00041933,120]
[394941770,1764178245897,-151.0,0.00041933,60]
[394941772,1764178245906,-157.926211,0.00041933,120]
[394941774,1764178245915,-151.0,0.00041933,120]
[394941777,1764178245925,-174.688864,0.00041933,120]
[394941779,1764178245934,-151.0,0.00041933,120]
[394941781,1764178245943,-159.872719,0.00041933,120]
[394941783,1764178245953,-156.141725,0.00041933,120]
[394941785,1764178245962,-151.0,0.00041933,120]
[394941787,1764178245971,-6528.0655,0.00041939,2]
[394941789,1764178245981,-579.38721661,0.00041959,15]
[394941791,1764178245990,-922.65913124,0.00041959,15]
[394941793,1764178245999,-156.68420278,0.00041959,15]
[394941795,1764178246008,-425.72104508,0.00041963,28]
[394941797,1764178246017,-1985.87940511,0.00042,120]
[394941799,1764178246027,-6000.00310673,0.00042,100]
[394941801,1764178246036,-1000.0,0.00042032,4]
[394941803,1764178246046,-230897.0039189,0.00042033,2]
[394941805,1764178246056,-3985.889778,0.00042033,2]
[394941807,1764178246065,-292.08420966,0.00042039,2]
[394941809,1764178246074,-1000.0,0.00042047,4]
[394941811,1764178246083,-370.21811518,0.00042053,7]
[394941813,1764178246092,-370.21811518,0.00042053,7]
[394941815,1764178246102,-150.0,0.00042055,30]
[394941817,1764178246111,-150.0,0.00042055,30]
[394941819,1764178246120,-150.0,0.00042055,30]
[394941821,1764178246128,-150.0,0.00042055,30]
[394941822,1764178246137,-150.0,0.00042058,21]
[394941824,1764178246146,-150.0,0.00042058,21]
[394941826,1764178246156,-150.0,0.00042058,21]
[394941828,1764178246165,-150.0,0.00042058,21]
[394941830,1764178246176,-150.0,0.00042058,21]
[394941832,1764178246185,-200.0,0.00042058,21]
[394941834,1764178246194,-150.0,0.00042058,21]
[394941836,1764178246203,-150.0,0.00042058,21]
[394941838,1764178246212,-150.0,0.00042058,21]
[394941840,1764178246226,-150.0,0.00042058,21]
[394941842,1764178246236,-150.0,0.00042058,21]
[394941844,1764178246246,-150.0,0.00042058,21]
[394941846,1764178246255,-500.0,0.00042058,21]
[394941848,1764178246265,-150.0,0.00042058,21]
[394941850,1764178246274,-150.0,0.00042058,21]
[394941852,1764178246283,-500.0,0.00042058,120]
[394941854,1764178246292,-151.0,0.00042059,120]
[394941856,1764178246301,-170.081893,0.00042059,120]
[394941858,1764178246310,-151.0,0.00042059,120]
[394941860,1764178246319,-203.789629,0.00042062,31]
[394941862,1764178246329,-278.75200913,0.00042062,31]
[394941864,1764178246338,-500.0,0.00042062,31]
[394941866,1764178246348,-302.40026084,0.00042062,31]
[394941868,1764178246358,-170.76707903,0.00042062,31]
[394941870,1764178246367,-20372.32620209,0.00042063,21]
[394941872,1764178246378,-266.636196,0.00042063,120]
[394941875,1764178246388,-1000.0,0.00042063,7]
[394941877,1764178246398,-1000.0,0.00042063,7]
[394941879,1764178246407,-187.729519,0.00042063,120]
[394941881,1764178246417,-283.394281,0.00042063,120]
[394941883,1764178246429,-74120648.32144529,0.00042063,7]
[394941885,1764178246439,-124159.59212735,0.00042063,2]
[394941887,1764178246448,-172814.8988286,0.00042063,2]
[394941889,1764178246457,-14138848.75437719,0.00042063,7]
[394941891,1764178246471,-1801.66904595,0.00042063,7]
[394941893,1764178246482,-492.91954602,0.00042063,7]
[394941896,1764178246495,-800.93116512,0.00042063,7]
[394941907,1764178246593,-124.63638868,0.00042063,7]
[394942770,1764178267180,300.0,0.00018699,120]
[394942771,1764178268381,198.21711758,0.00018699,30]
[394942772,1764178725915,-175.95346487,0.00016899,2]
[394942773,1764178725938,-300.0,0.00016998,2]
[394942774,1764178725962,-1200.0,0.00016998,2]
[394942775,1764178725989,-500.0,0.00016999,2]
[394942776,1764178726011,-500.0,0.00016999,2]
[394942777,1764178726032,-500.0,0.00016999,2]
[394942778,1764178726054,-161.54653513,0.00016999,2]
[394942779,1764178825281,-480.0,0.00016998,2]
[394942780,1764178825315,-338.45346487,0.00016999,2]
[394942781,1764178825345,-500.0,0.00016999,2]
[394942782,1764178825375,-500.0,0.00016999,2]
[394942783,1764178825405,-500.0,0.00016999,2]
[394942784,1764178825430,-480.0,0.00016999,2]
[394942785,1764178825442,-27.14205343,0.00016999,2]
[394942786,1764178825452,-311.31141144,0.00016999,2]
[394942787,1764178825468,-188.68858856,0.00016999,2]
[394942788,1764178825478,-311.31141144,0.00016999,2]
[394942789,1764178825492,-188.68858856,0.00016999,2]
[394942790,1764178825502,-311.31141144,0.00016999,2]
[394942791,1764178825515,-50.71505,0.00016999,2]
[394942792,1764178825525,-449.28495,0.00017333,2]
[394942793,1764178825537,-50.71505,0.00017333,2]
[394942794,1764178825546,-382.37802026,0.00017881,2]
[394942795,1764178856729,-37.26029023,0.00017881,2]
[394942796,1764178856760,-500.0,0.00017999,2]
[394942797,1764178856791,-500.0,0.00017999,2]
[394942798,1764178856810,-37.26029023,0.00017999,2]
[394942799,1764178856821,-500.0,0.00017999,2]
[394942800,1764178856831,-0.78970977,0.00017999,2]
[394942801,1764178856841,-499.21029023,0.00017999,2]
[394942802,1764178856856,-7.90259116,0.00017999,2]
[394942803,1764178856865,-499.57682838,0.00017999,2]
[394942804,1764178869635,1452.66067979,0.00019799,120]
[394942820,1764179431980,-198.98531838,0.00018899,2]
[394942821,1764179431990,-222.13286016,0.00018899,2]
[394942822,1764179432000,-164.49,0.00019377,2]
[394942823,1764179432011,-250.0,0.00020789,2]
[394942824,1764179432021,-599.52181273,0.00020789,3]
[394942825,1764179432036,-4400.47818727,0.00020789,3]
[394942826,1764179432046,-300.0,0.00020789,2]
[394942827,1764179432055,-175.23621143,0.00021279,2]
[394942828,1764179432065,-2045.62082818,0.00021379,3]
[394942829,1764179432074,-164.49,0.00022607,2]
[394942830,1764179432084,-3450.51677865,0.00025398,2]
[394942831,1764179432093,-164.49,0.00025836,2]
[394942832,1764179432102,-164.49,0.00029066,2]
[394942833,1764179432112,-345.5251956,0.0003,120]
[394942834,1764179432121,-164.49,0.00032296,2]
[394942835,1764179432130,-167.642,0.00034619,39]
[394942836,1764179432139,-813.47,0.00034619,39]
[394942837,1764179432149,-164.49,0.00035525,2]
[394942838,1764179432159,-212.0,0.00036,30]
[394942839,1764179432168,-447.0,0.00036025,2]
[394942840,1764179432178,-264.05,0.00036026,2]
[394942841,1764179432188,-150.99,0.00036026,30]
[394942842,1764179432197,-9999.99,0.00036026,2]
[394942843,1764179432206,-9999.99,0.00036026,2]
[394942844,1764179432218,-150.0,0.00036026,2]
[394942845,1764179432228,-6502.0,0.00036026,2]
[394942846,1764179432240,-4067.20503429,0.0003675,2]
[394942847,1764179432249,-2767.13,0.00037249,2]
[394942848,1764179432258,-150.0,0.00037874,7]
[394942849,1764179432268,-150.0,0.00037874,7]
[394942850,1764179432277,-150.0,0.00037874,7]
[394942851,1764179432287,-150.0,0.00037874,7]
[394942852,1764179432296,-150.0,0.00037874,7]
[394942853,1764179432305,-150.0,0.00037874,7]
[394942854,1764179432315,-150.0,0.00037874,7]
[394942855,1764179432325,-212.0,0.00038,30]
[394942856,1764179432334,-270.65247891,0.0003834,2]
[394942857,1764179432345,-38.34752109,0.0003834,2]
[394942858,1764179432355,-502.07739409,0.00038356,2]
[394942859,1764179432365,-175.23621143,0.00038361,2]
[394942860,1764179432374,-14817.40574088,0.00038362,2]
[394942861,1764179432384,-309.0,0.00038461,7]
[394942862,1764179432394,-164.49,0.00038755,2]
[394942863,1764179432408,-154.72,0.00038793,30]
[394942864,1764179432418,-309.0,0.00038917,2]
[394942865,1764179432428,-250.0,0.00038924,2]
[394942866,1764179432438,-150.0,0.00039026,2]
[394942867,1764179432448,-6502.0,0.00039026,2]
[394942868,1764179432458,-309.0,0.00039127,2]
[394942869,1764179432468,-166.66,0.00039167,30]
[394942870,1764179432477,-204.76,0.00039178,5]
[394942871,1764179432488,-309.0,0.0003924,2]
[394942872,1764179432498,-150.0,0.00039277,7]
[394942873,1764179432508,-6863.44496981,0.00039551,2]
[394942874,1764179432517,-150.0,0.00039553,2]
[394942875,1764179432527,-5000.0,0.00039576,120]
[394942876,1764179432536,-309.0,0.00039918,7]
[394942877,1764179432545,-150.0,0.00039978,7]
[394942878,1764179432554,-150.0,0.00039978,7]
[394942879,1764179432563,-166.66,0.00039991,30]
[394942880,1764179432573,-309.0,0.00040007,2]
[394942881,1764179432583,-652.49074281,0.0004006,2]
[394942882,1764179432594,-704.44359474,0.0004006,2]
[394942883,1764179432685,-2549.30616832,0.0004006,2]
[394942884,1764179432761,-2.5e-07,0.0004006,2]
[394942885,1764179432773,-380.79749567,0.0004006,2]
[394942886,1764179432785,-295.0,0.0004006,2]
[394942887,1764179432803,-9507.04199821,0.0004006,2]
[394942888,1764179432813,-309.0,0.000402,120]
[394942889,1764179432822,-309.0,0.00040293,2]
[394942890,1764179432831,-309.0,0.00040576,2]
[394942891,1764179432840,-309.0,0.00040624,2]
[394942892,1764179432849,-150.0,0.00040679,7]
[394942893,1764179432858,-311.0,0.00040766,120]
[394942894,1764179432868,-166.66,0.00040816,30]
[394942895,1764179432876,-309.0,0.00040984,7]
[394942896,1764179432885,-166.66,0.00041116,2]
[394942897,1764179432894,-840.84438992,0.00041222,50]
[394942898,1764179432903,-569.99749933,0.000415,120]
[394942899,1764179432913,-246.30453399,0.0004158,2]
[394942900,1764179432922,-166.66,0.00041641,30]
[394942901,1764179432932,-2035.40269293,0.0004165,2]
[394942902,1764179432941,-309.0,0.00041705,120]
[394942903,1764179432950,-1120.75944784,0.00041744,2]
[394942904,1764179432961,-579.38721668,0.00041852,15]
[394942905,1764179432970,-329.9797,0.00041862,2]
[394942906,1764179432980,-2500.0,0.00041862,2]
[394942907,1764179432990,-579.3872166,0.00041882,15]
[394942908,1764179433002,-579.3872166,0.00041911,15]
[394942909,1764179433011,-67.21592073,0.0004193,7]
[394942910,1764179433023,-243.78407927,0.0004193,7]
[394942911,1764179433033,-579.3872166,0.00041941,15]
[394942912,1764179433042,-199.0,0.00041951,7]
[394942913,1764179433052,-13229.62870413,0.00041952,4]
[394942914,1764179433064,-4308.48920621,0.00041952,4]
[394942915,1764179433075,-2850.15,0.00041952,4]
[394942942,1764179438002,-304.6872819,0.00041951,31]
[394942943,1764179438016,-68.12888188,0.00041952,4]
[394942944,1764179438055,-182959.07708138,0.00041952,4]
[394942945,1764179438110,-443.60105506,0.00041952,4]
[394942946,1764179438121,-4422.5248374,0.00041952,4]
[394942947,1764179438133,-133451.71367994,0.00041952,4]
[394942948,1764179438142,-203579.901162,0.00041952,4]
[394942949,1764179438152,-371.35757643,0.00041952,7]
[394942950,1764179438161,-749.0,0.00041962,7]
[394942951,1764179438174,-507901.960824,0.00041962,2]
[394942955,1764179438303,-152464.05501608,0.00041962,2]
[394942957,1764179438313,-30263.03456259,0.00041962,2]
[394942978,1764179438506,-32484.31301816,0.00041962,2]
[394942988,1764179438597,-1439.312,0.00041962,2]
[394943134,1764179440067,-393.75864082,0.00041962,2]
[394943135,1764179440122,-1678.4,0.00041962,2]
[394943144,1764179440230,-756.12363347,0.00041962,2]
[394943146,1764179440241,-17626.48992,0.00041962,2]
[394943148,1764179440252,-14992.55238488,0.00041962,2]
[394943149,1764179440262,-579.3872166,0.0004197,15]
[394943151,1764179440271,-579.3872166,0.00042,15]
[394943153,1764179440280,-7428.98507492,0.00042016,4]
[394943154,1764179440289,-7019.99659178,0.00042016,4]
[394943155,1764179440298,-6502.0,0.00042026,2]
[394943156,1764179440307,-579.3872166,0.00042029,15]
[394943157,1764179440316,-7019.99659178,0.00042042,4]
[394943158,1764179440326,-7019.99659178,0.00042043,4]
[394943159,1764179440335,-18487.53232609,0.0004205,4]
[394943160,1764179440760,-8856.3,0.0004205,4]
[394943161,1764179440816,-736.15404101,0.0004205,4]
[394943162,1764179440826,-28079.9863671,0.00042052,4]
[394943163,1764179440836,-14039.9931836,0.00042053,4]
[394943164,1764179440845,-150.0,0.00042058,21]
[394943165,1764179440854,-500.0,0.00042058,21]
[394943166,1764179440864,-150.0,0.00042058,21]
[394943167,1764179440873,-150.0,0.00042058,21]
[394943168,1764179440882,-500.0,0.00042058,120]
[394943169,1764179440892,-500.0,0.00042058,21]
[394943170,1764179440902,-63.35119732,0.00042058,21]
[394943171,1764179440912,-86.64880268,0.00042058,21]
[394943172,1764179440921,-150.0,0.00042058,2]
[394943174,1764179440931,-150.0,0.00042058,21]
[394943175,1764179440939,-150.0,0.00042058,21]
[394943177,1764179440949,-150.0,0.00042058,2]
[394943179,1764179440958,-500.0,0.00042058,21]
[394943180,1764179440968,-150.0,0.00042058,21]
[394943181,1764179440977,-467.45,0.00042058,30]
[394943182,1764179440986,-200.0,0.00042058,60]
[394943183,1764179440995,-150.0,0.00042058,60]
[394943184,1764179441006,-200.0,0.00042058,60]
[394943185,1764179441015,-200.0,0.00042058,60]
[394943186,1764179441024,-579.3872166,0.00042059,15]
[394943187,1764179441034,-1087.8179915,0.0004206,2]
[394943188,1764179441042,-5462.70746959,0.0004206,2]
[394943189,1764179441053,-44042.29487511,0.0004206,2]
[394943190,1764179441063,-10622.70211054,0.00042062,2]
[394943192,1764179441073,-5162.84221739,0.00042062,2]
[394943194,1764179441083,-1449.495,0.00042062,2]
[394943200,1764179444659,-16943.10490576,0.00042062,2]
[394943201,1764179444670,-500.0,0.00042062,120]
[394943202,1764179444680,-500.0,0.00042062,120]
[394943203,1764179444692,-200.0,0.00042062,120]
[394943204,1764179444702,-206.71851289,0.00042062,120]
[394943205,1764179444711,-206.03832228,0.00042062,120]
[394943206,1764179444721,-200.0,0.00042062,120]
[394943207,1764179444730,-205.57943248,0.00042062,120]
[394943208,1764179444740,-500.0,0.00042062,120]
[394943209,1764179444752,-500.0,0.00042062,120]
[394943210,1764179444761,-500.0,0.00042062,120]
[394943211,1764179444771,-500.0,0.00042062,120]
[394943212,1764179444781,-500.0,0.00042062,120]
[394943213,1764179444791,-500.0,0.00042062,120]
[394943214,1764179444801,-500.0,0.00042062,120]
[394943215,1764179444811,-500.0,0.00042062,120]
[394943216,1764179444820,-500.0,0.00042062,120]
[394943217,1764179444830,-500.0,0.00042062,120]
[394943218,1764179444840,-500.0,0.00042062,120]
[394943219,1764179444852,-500.0,0.00042062,120]
[394943220,1764179444863,-578.20924308,0.00042062,120]
[394943221,1764179444873,-500.0,0.00042062,120]
[394943223,1764179444882,-250.0,0.00042062,120]
[394943225,1764179444891,-500.0,0.00042062,120]
[394943226,1764179444901,-500.0,0.00042062,120]
[394943227,1764179444911,-500.0,0.00042062,120]
[394943228,1764179444920,-250.0,0.00042062,120]
[394943229,1764179444929,-500.0,0.00042062,120]
[394943230,1764179444941,-500.0,0.00042062,120]
[394943231,1764179444952,-284.74760302,0.00042062,120]
[394943232,1764179444961,-500.0,0.00042062,120]
[394943233,1764179444970,-500.0,0.00042062,120]
[394943234,1764179444980,-500.0,0.00042062,120]
[394943235,1764179444989,-500.0,0.00042062,120]
[394943236,1764179445000,-666.0,0.00042062,120]
[394943237,1764179445011,-500.0,0.00042062,120]
[394943238,1764179445020,-500.0,0.00042062,120]
[394943239,1764179445030,-500.0,0.00042062,120]
[394943240,1764179445039,-666.0,0.00042062,120]
[394943241,1764179445050,-500.0,0.00042062,120]
[394943242,1764179445060,-500.0,0.00042062,120]
[394943243,1764179445070,-500.0,0.00042062,120]
[394943244,1764179445079,-537.06884642,0.00042062,120]
[394943245,1764179445089,-666.0,0.00042062,120]
[394943246,1764179445099,-500.0,0.00042062,120]
[394943247,1764179445108,-500.0,0.00042062,120]
[394943248,1764179445119,-666.0,0.00042062,120]
[394943249,1764179445128,-500.0,0.00042062,120]
[394943250,1764179445137,-500.0,0.00042062,120]
[394943251,1764179445149,-500.0,0.00042062,120]
[394943252,1764179445158,-666.0,0.00042062,120]
[394943253,1764179445168,-500.0,0.00042062,120]
[394943254,1764179445178,-500.0,0.00042062,120]
[394943255,1764179445188,-500.0,0.00042062,120]
[394943256,1764179445197,-666.0,0.00042062,120]
[394943257,1764179445207,-281.86349704,0.00042062,120]
[394943258,1764179445216,-500.0,0.00042062,120]
[394943259,1764179445226,-500.0,0.00042062,120]
[394943260,1764179445235,-500.0,0.00042062,120]
[394943261,1764179445244,-199.03492457,0.00042062,120]
[394943262,1764179445255,-500.0,0.00042062,120]
[394943263,1764179445264,-151.0,0.00042062,120]
[394943264,1764179445273,-500.0,0.00042062,120]
[394943265,1764179445282,-151.0,0.00042062,120]
[394943266,1764179445293,-500.0,0.00042062,120]
[394943267,1764179445302,-208.72064901,0.00042062,120]
[394943268,1764179445312,-500.0,0.00042062,120]
[394943269,1764179445323,-23454.2001822,0.00042063,2]
[394943270,1764179445332,-600.0,0.00042063,120]
[394943271,1764179445341,-716.42373589,0.00042064,3]
[394943272,1764179445350,-152.34875994,0.00042073,10]
[394943273,1764179445359,-163.89853486,0.00042073,10]
[394943274,1764179445368,-150.0,0.00042082,30]
[394943275,1764179445377,-150.0,0.00042082,30]
[394943276,1764179445387,-150.0,0.00042082,30]
[394943277,1764179445396,-150.0,0.00042082,30]
[394943278,1764179445406,-150.0,0.00042082,30]
[394943279,1764179445416,-579.3872166,0.00042088,15]
[394943280,1764179445426,-7019.99659178,0.0004209,4]
[394943281,1764179445436,-582.0,0.000421,3]
[394943282,1764179445447,-153.32,0.000421,30]
[394943283,1764179445458,-3855.5,0.000421,14]
[394943284,1764179445468,-2416.72,0.000421,30]
[394943285,1764179445477,-151.9,0.000421,14]
[394943286,1764179445486,-7019.99659178,0.00042102,4]
[394943287,1764179445497,-14039.9931836,0.00042112,4]
[394943288,1764179445506,-247.52382641,0.00042118,2]
[394943289,1764179445515,-1000.0,0.00042122,2]
[394943290,1764179445524,-33379.5876,0.00042122,2]
[394943291,1764179445534,-7019.99659178,0.0004218,4]
[394943292,1764179445544,-150.0,0.00042195,21]
[394943293,1764179445555,-500.0,0.00042195,21]
[394943294,1764179445565,-150.0,0.00042195,21]
[394943295,1764179445574,-250.0,0.00042195,21]
[394943296,1764179445583,-500.0,0.00042195,120]
[394943297,1764179445593,-550.0,0.00042195,21]
[394943298,1764179445603,-150.0,0.00042195,21]
[394943299,1764179445616,-150.0,0.00042195,21]
[394943300,1764179445626,-150.0,0.00042195,21]
[394943301,1764179445638,-600.0,0.00042195,21]
[394943302,1764179445649,-150.0,0.00042195,21]
[394943303,1764179445659,-150.0,0.00042195,60]
[394943304,1764179445675,-7019.99659178,0.00042198,4]
[394943305,1764179445688,-5590.54682815,0.000422,2]
[394943306,1764179445698,-313.0,0.00042204,7]
[394943307,1764179445708,-7019.99659178,0.00042208,4]
[394943308,1764179445718,-371.35757643,0.00042208,7]
[394943311,1764179445727,-371.35757643,0.00042208,7]
[394943313,1764179445737,-10186.16310105,0.00042218,21]
[394943315,1764179445748,-155.433773,0.00042218,30]
[394943317,1764179445758,-224536.44152138,0.00042218,7]
[394943319,1764179445770,-4309.11888855,0.00042218,7]
[394943322,1764179445782,-837.40658599,0.00042218,7]
[394943325,1764179445792,-1783.2589,0.00042218,7]
[394943327,1764179445803,-16001.03414096,0.00042218,7]
[394943335,1764179446103,-79327.1869346,0.00042218,7]
[394943336,1764179446115,-1792.6,0.00042218,7]
[394943337,1764179446368,-1191.5354,0.00042218,7]
[394943338,1764179446380,-1040.76067235,0.00042218,7]
[394944364,1764179467919,195.0,0.000198,120]
[394944365,1764179468956,154.55748469,0.000198,120]
[394944369,1764180237014,-351.70385627,0.000164,2]
[394944370,1764180237035,-800.0,0.00016438,2]
[394944371,1764180237057,-248.29614373,0.00017,2]
[394944573,1764180632096,-1.70385627,0.00017,2]
[394944575,1764180632106,-1685.28526744,0.00024582,2]
[394944576,1764180632117,-10.83190888,0.00024582,2]
[394944577,1764180632126,-152.19329144,0.00024845,2]
[394944578,1764180632135,-311.17773468,0.00024846,2]
[394944579,1764180632147,-59.8416307,0.00024846,2]
[394944580,1764180632155,-229.62329234,0.00024945,2]
[394944581,1764180632167,-70.37670766,0.00024945,2]
[394944582,1764180632178,-300.0,0.00024945,2]
[394944583,1764180632189,-281.92459799,0.00024945,2]
[394944584,1764180632201,-918.07540201,0.00024945,2]
[394944585,1764180632210,-6250.77,0.00024946,2]
[394944586,1764180632219,-500.0,0.00025,2]
[394944587,1764180632229,-283.83511784,0.00025,2]
[394944588,1764180632238,-500.99656913,0.00025,2]
[394944589,1764180632247,-337.56282499,0.00025,2]
[394944590,1764180632256,-500.0,0.00025,2]
[394944591,1764180632266,-500.0,0.00025,2]
[394944592,1764180632275,-500.0,0.00025,2]
[394944593,1764180632285,-500.0,0.00025,2]
[394944594,1764180632294,-500.0,0.00025548,2]
[394944595,1764180632304,-173.07334156,0.00026726,53]
[394944596,1764180632313,-420.0,0.00027026,2]
[394944597,1764180632326,-1680.0,0.00027148,2]
[394944598,1764180632335,-587.0,0.00029279,2]
[394944599,1764180632346,-2351.0,0.00029545,2]
[394944600,1764180632355,-371.01936536,0.00030545,2]
[394944601,1764180632365,-295.94635957,0.00030706,2]
[394944602,1764180632374,-823.0,0.00031721,3]
[394944603,1764180632384,-1101.66339234,0.00032154,3]
[394944604,1764180632395,-2190.33660766,0.00032154,3]
[394944605,1764180632404,-46.73691871,0.000329,5]
[394944606,1764180632416,-168.83897693,0.000329,5]
[394944607,1764180632425,-263.37389784,0.00033604,2]
[394944608,1764180632434,-103.75983328,0.00034,2]
[394944609,1764180632446,-220.04659076,0.00034,2]
[394944610,1764180632456,-310.0,0.00034366,3]
[394944611,1764180632466,-1154.0,0.00034993,3]
[394944612,1764180632475,-561.0,0.0003594,2]
[394944613,1764180632485,-6502.0,0.0003594,2]
[394944614,1764180632494,-300.0,0.00036182,2]
[394944615,1764180632503,-151.0,0.00036183,2]
[394944616,1764180632513,-151.0,0.00036183,2]
[394944617,1764180632522,-151.0,0.00036183,2]
[394944618,1764180632532,-151.0,0.00036183,2]
[394944619,1764180632541,-151.0,0.00036183,2]
[394944620,1764180632551,-151.0,0.00036183,2]
[394944621,1764180632560,-151.0,0.00036183,2]
[394944623,1764180632569,-151.0,0.00036183,2]
[394944624,1764180632578,-151.0,0.00036183,2]
[394944626,1764180632589,-151.0,0.00036183,2]
[394944629,1764180632598,-151.0,0.00036183,2]
[394944630,1764180632607,-151.0,0.00036183,2]
[394944631,1764180632616,-285.24487916,0.00036183,2]
[394944632,1764180632626,-231.83347088,0.00036204,2]
[394944633,1764180632636,-2302.75455845,0.00036205,2]
[394944634,1764180632647,-6478.47698898,0.00036205,2]
[394944635,1764180632657,-650.776,0.00036228,44]
[394944636,1764180632666,-371.01936536,0.00036243,2]
[394944637,1764180632676,-500.48889025,0.000377,5]
[394944638,1764180632686,-500.0,0.000377,5]
[394944639,1764180632695,-299.23875541,0.000377,5]
[394944640,1764180632709,-200.76124459,0.000377,5]
[394944641,1764180632718,-500.0,0.000377,5]
[394944642,1764180632727,-1007.57807391,0.00037855,2]
[394944643,1764180632737,-150.0,0.00037973,7]
[394944644,1764180632746,-150.0,0.00037973,7]
[394944645,1764180632755,-150.0,0.00037973,7]
[394944646,1764180632764,-162.19986855,0.00037973,7]
[394944647,1764180632775,-150.0,0.00037973,7]
[394944648,1764180632784,-150.0,0.00037973,7]
[394944649,1764180632793,-150.91340114,0.00037973,7]
[394944650,1764180632802,-245.21708377,0.00037973,7]
[394944651,1764180632811,-150.41147425,0.00037973,7]
[394944652,1764180632821,-150.0,0.00037973,7]
[394944653,1764180632831,-150.0,0.00037973,7]
[394944654,1764180632843,-500.0,0.00037988,30]
[394944655,1764180632852,-500.0,0.00038024,30]
[394944656,1764180632862,-12436.58,0.00038208,2]
[394944657,1764180632871,-500.0,0.00038244,5]
[394944658,1764180632881,-1000.0,0.00038268,2]
[394944659,1764180632891,-150.0,0.00038575,7]
[394944660,1764180632900,-2027.34,0.00038577,120]
[394944661,1764180632910,-500.0,0.000387,120]
[394944662,1764180632919,-152.19329144,0.00038833,2]
[394944663,1764180632928,-999.0,0.00038916,3]
[394944664,1764180632938,-200.0,0.00038933,2]
[394944665,1764180632947,-6502.0,0.0003894,2]
[394944666,1764180632957,-250.26,0.00038977,2]
[394944667,1764180632966,-5511.0171733,0.00039071,2]
[394944668,1764180632976,-150.0,0.00039178,7]
[394944669,1764180632986,-500.0,0.000392,5]
[394944670,1764180632999,-500.0,0.000392,5]
[394944671,1764180633010,-500.0,0.000392,5]
[394944672,1764180633019,-152.0,0.00039605,3]
[394944673,1764180633030,-430.87,0.00039665,2]
[394944675,1764180633039,-1000.0,0.00039748,5]